fUST/lending_fUST_20250228
["ID","MTS","AMOUNT","RATE_DAILY","PERIOD"]
[354788179,1740696632915,-804.53331051,0.00054793,2]
[354788180,1740696632924,-500.0,0.00054793,120]
[354788181,1740696632934,-804.53331051,0.00054793,2]
[354788182,1740696632945,-500.0,0.00054793,120]
[354788183,1740696632955,-804.53331051,0.00054793,2]
[354788184,1740696632964,-500.0,0.00054793,120]
[354788185,1740696632974,-804.53331051,0.00054793,2]
[354788186,1740696632983,-500.0,0.00054793,120]
[354788187,1740696632994,-804.53331051,0.00054793,2]
[354788188,1740696633003,-500.0,0.00054793,120]
[354788189,1740696633012,-804.53331051,0.00054793,2]
[354788190,1740696633022,-500.0,0.00054793,120]
[354788191,1740696633031,-804.53331051,0.00054793,2]
[354788192,1740696633041,-500.0,0.00054793,120]
[354788193,1740696633051,-804.53331051,0.00054793,2]
[354788194,1740696633060,-500.0,0.00054793,120]
[354788195,1740696633070,-500.0,0.00054793,120]
[354788196,1740696633079,-500.0,0.00054793,120]
[354788197,1740696633089,-804.53331051,0.00054793,2]
[354788198,1740696633099,-500.0,0.00054793,120]
[354788199,1740696633109,-500.0,0.00054793,120]
[354788200,1740696633119,-804.53331051,0.00054793,2]
[354788201,1740696633129,-804.53331051,0.00054793,2]
[354788202,1740696633277,-560.02081834,0.00054793,120]
[354788203,1740696633287,-804.53331051,0.00054793,2]
[354788204,1740696633297,-500.0,0.00054793,120]
[354788205,1740696633307,-804.53331051,0.00054793,2]
[354788206,1740696633317,-500.0,0.00054793,120]
[354788207,1740696633326,-804.53331051,0.00054793,2]
[354788208,1740696633336,-500.0,0.00054793,120]
[354788209,1740696633345,-804.53331051,0.00054793,2]
[354788210,1740696633355,-500.0,0.00054793,120]
[354788211,1740696633365,-804.53331051,0.00054793,2]
[354788212,1740696633375,-804.53331051,0.00054793,2]
[354788213,1740696633385,-804.53331051,0.00054793,2]
[354788214,1740696633394,-804.53331051,0.00054793,2]
[354788215,1740696633404,-804.53331051,0.00054793,2]
[354788216,1740696633413,-804.53331051,0.00054793,2]
[354788217,1740696633423,-804.53331051,0.00054793,2]
[354788218,1740696633433,-804.53331051,0.00054793,2]
[354788219,1740696633442,-804.53331051,0.00054793,2]
[354788220,1740696633452,-804.53331051,0.00054793,2]
[354788221,1740696633462,-804.53331051,0.00054793,2]
[354788222,1740696633471,-804.53331051,0.00054793,2]
[354788223,1740696633481,-804.53331051,0.00054793,2]
[354788224,1740696633490,-804.53331051,0.00054793,2]
[354788225,1740696633499,-804.53331051,0.00054793,2]
[354788226,1740696633509,-804.53331051,0.00054793,2]
[354788227,1740696633519,-804.53331051,0.00054793,2]
[354788228,1740696633528,-804.53331051,0.00054793,2]
[354788229,1740696633538,-804.53331051,0.00054793,2]
[354788230,1740696633548,-804.53331051,0.00054793,2]
[354788231,1740696633558,-804.53331051,0.00054793,2]
[354788232,1740696633568,-804.53331051,0.00054793,2]
[354788233,1740696633578,-804.53331051,0.00054793,2]
[354788234,1740696633587,-500.0,0.00054793,120]
[354788235,1740696633597,-802.78432506,0.00054793,2]
[354788236,1740696633607,-802.78432506,0.00054793,2]
[354788237,1740696633618,-500.0,0.00054793,120]
[354788238,1740696633629,-802.78432506,0.00054793,2]
[354788239,1740696633638,-500.0,0.00054793,120]
[354788240,1740696633648,-802.78432506,0.00054793,2]
[354788241,1740696633657,-802.78432506,0.00054793,2]
[354788242,1740696633667,-802.78432506,0.00054793,2]
[354788243,1740696633677,-802.78432506,0.00054793,2]
[354788244,1740696633686,-802.78432506,0.00054793,2]
[354788245,1740696633695,-802.78432506,0.00054793,2]
[354788246,1740696633705,-802.78432506,0.00054793,2]
[354788247,1740696633715,-802.78432506,0.00054793,2]
[354788248,1740696633725,-802.78432506,0.00054793,2]
[354788249,1740696633734,-802.78432506,0.00054793,2]
[354788250,1740696633744,-802.78432506,0.00054793,2]
[354788251,1740696633754,-802.78432506,0.00054793,2]
[354788252,1740696633763,-802.78432506,0.00054793,2]
[354788253,1740696633773,-802.78432506,0.00054793,2]
[354788254,1740696633782,-802.78432506,0.00054793,2]
[354788255,1740696633791,-802.78432506,0.00054793,2]
[354788256,1740696633801,-802.78432506,0.00054793,2]
[354788257,1740696633810,-802.78432506,0.00054793,2]
[354788258,1740696633819,-802.78432506,0.00054793,2]
[354788259,1740696633829,-802.78432506,0.00054793,2]
[354788260,1740696633838,-802.78432506,0.00054793,2]
[354788261,1740696633848,-802.78432506,0.00054793,2]
[354788262,1740696633858,-802.78432506,0.00054793,2]
[354788263,1740696633872,-802.78432506,0.00054793,2]
[354788264,1740696633881,-802.78432506,0.00054793,2]
[354788265,1740696633890,-802.78432506,0.00054793,2]
[354788266,1740696633899,-802.78432506,0.00054793,2]
[354788267,1740696633910,-802.78432506,0.00054793,2]
[354788268,1740696633919,-802.78432506,0.00054793,2]
[354788269,1740696633929,-778.08326889,0.00054793,2]
[354788270,1740696633939,-778.08326889,0.00054793,2]
[354788271,1740696633949,-778.08326889,0.00054793,2]
[354788272,1740696633958,-778.08326889,0.00054793,2]
[354788273,1740696633968,-778.08326889,0.00054793,2]
[354788274,1740696633979,-778.08326889,0.00054793,2]
[354788275,1740696633988,-778.08326889,0.00054793,2]
[354788276,1740696633997,-778.08326889,0.00054793,2]
[354788277,1740696634007,-778.08326889,0.00054793,2]
[354788278,1740696634016,-778.08326889,0.00054793,2]
[354788279,1740696634027,-778.08326889,0.00054793,2]
[354788280,1740696634037,-778.08326889,0.00054793,2]
[354788281,1740696634047,-778.08326889,0.00054793,2]
[354788282,1740696634057,-888.0,0.00054794,120]
[354788283,1740696634067,-888.0,0.00054794,120]
[354788284,1740696634076,-888.0,0.00054794,120]
[354788285,1740696634086,-888.0,0.00054794,120]
[354788286,1740696634095,-888.0,0.00054794,120]
[354788287,1740696634105,-888.0,0.00054794,120]
[354788288,1740696634114,-888.0,0.00054794,120]
[354788289,1740696634124,-888.0,0.00054794,120]
[354788290,1740696634133,-888.0,0.00054794,120]
[354788291,1740696634143,-888.0,0.00054794,120]
[354788292,1740696634152,-888.0,0.00054794,120]
[354788293,1740696634162,-888.0,0.00054794,120]
[354788294,1740696634171,-888.0,0.00054794,120]
[354788295,1740696634181,-888.0,0.00054794,120]
[354788296,1740696634190,-888.0,0.00054794,120]
[354788297,1740696634199,-888.0,0.00054794,120]
[354788298,1740696634209,-803.01446245,0.00054794,120]
[354788299,1740696634217,-500.0,0.00054794,120]
[354788300,1740696634226,-500.0,0.00054794,120]
[354788301,1740696634236,-342.31,0.00054794,120]
[354788302,1740696634245,-236.99,0.000548,30]
[354788303,1740696634255,-500.0,0.00055068,120]
[354788304,1740696634265,-543.37,0.000551,30]
[354788305,1740696634275,-500.0,0.00055342,120]
[354788306,1740696634285,-1002.07271648,0.00055514,2]
[354788307,1740696634296,-12000.0,0.000556,120]
[354788308,1740696634306,-500.0,0.00055616,120]
[354788309,1740696634316,-245.98,0.000557,30]
[354788310,1740696634325,-41725.88,0.000557,30]
[354788311,1740696634335,-1608.29,0.000557,30]
[354788312,1740696634344,-949.53,0.000557,30]
[354788313,1740696634354,-500.0,0.0005589,120]
[354788314,1740696634364,-500.0,0.00056164,120]
[354788315,1740696634373,-150.0,0.00056389,2]
[354788316,1740696634383,-150.0,0.00056389,2]
[354788317,1740696634392,-500.0,0.00056438,120]
[354788318,1740696634402,-500.0,0.00056712,120]
[354788319,1740696634413,-500.0,0.00056986,120]
[354788320,1740696634422,-500.0,0.0005726,120]
[354788321,1740696634431,-500.0,0.00057534,120]
[354788322,1740696634441,-500.0,0.00057808,120]
[354788323,1740696634451,-1002.07271647,0.00057861,2]
[354788324,1740696634460,-9455.4,0.00058081,120]
[354788325,1740696634470,-150.0,0.00058111,30]
[354788326,1740696634479,-2200.0,0.00058111,120]
[354788327,1740696634489,-800.0,0.00058843,120]
[354788328,1740696634498,-800.0,0.00059363,120]
[354788329,1740696634507,-150.0,0.00059389,2]
[354788330,1740696634517,-150.0,0.00059389,2]
[354788331,1740696634527,-500.0,0.00060196,63]
[354788332,1740696634536,-1002.07271647,0.00060207,2]
[354788333,1740696634546,-800.0,0.00061,120]
[354788334,1740696634555,-500.0,0.00061108,7]
[354788335,1740696634564,-800.0,0.0006159,120]
[354788336,1740696634574,-150.0,0.00062389,2]
[354788337,1740696634583,-150.0,0.00062389,2]
[354788338,1740696634593,-543.37,0.000624,30]
[354788339,1740696634602,-1002.07271647,0.00062554,2]
[354788340,1740696634612,-800.0,0.00062651,120]
[354788341,1740696634622,-9455.4,0.0006356,120]
[354788342,1740696634631,-500.0,0.00063786,14]
[354788343,1740696634641,-507.22074033,0.000639,120]
[354788344,1740696634651,-41725.88,0.000639,30]
[354788345,1740696634661,-949.53,0.000639,30]
[354788346,1740696634670,-208.43,0.00064383,120]
[354788347,1740696634680,-208.43,0.00064383,120]
[354788348,1740696634690,-208.43,0.00064383,120]
[354788349,1740696634699,-208.43,0.00064383,120]
[354788350,1740696634709,-208.43,0.00064383,120]
[354788351,1740696634719,-208.43,0.00064383,120]
[354788352,1740696634728,-208.43,0.00064383,120]
[354788353,1740696634738,-208.43,0.00064383,120]
[354788354,1740696634747,-208.43,0.00064383,120]
[354788355,1740696634756,-208.43,0.00064383,120]
[354788356,1740696634766,-208.43,0.00064383,120]
[354788357,1740696634776,-208.43,0.00064383,120]
[354788358,1740696634786,-208.43,0.00064383,120]
[354788359,1740696634795,-208.43,0.00064383,120]
[354788360,1740696634805,-208.43,0.00064383,120]
[354788361,1740696634814,-208.43,0.00064383,120]
[354788362,1740696634823,-208.43,0.00064383,120]
[354788363,1740696634832,-208.43,0.00064383,120]
[354788364,1740696634842,-208.43,0.00064383,120]
[354788365,1740696634851,-208.43,0.00064383,120]
[354788366,1740696634861,-208.43,0.00064383,120]
[354788367,1740696634874,-208.43,0.00064383,120]
[354788368,1740696634883,-208.43,0.00064383,120]
[354788369,1740696634892,-208.57615572,0.00064383,120]
[354788370,1740696634902,-245.98,0.000647,30]
[354788371,1740696634911,-1608.29,0.000647,30]
[354788372,1740696634921,-425.29704238,0.00064899,31]
[354788373,1740696634930,-355.99970542,0.00064899,120]
[354788374,1740696634939,-17191.2612975,0.000649,91]
[354788375,1740696634950,-40576.16556477,0.000649,63]
[354788376,1740696634959,-1000.0,0.000649,30]
[354788377,1740696634969,-1002.07271647,0.000649,2]
[354788378,1740696634978,-283417.40013908,0.000649,2]
[354788382,1740696637903,-500.0,0.00050999,120]
[354788383,1740696637913,-371.56362765,0.00053389,2]
[354788427,1740697758144,-651.22844867,0.00041984,2]
[354788448,1740697832527,-1412.86,0.00041984,2]
[354788449,1740697832540,-22835.91155133,0.00041984,2]
[354788450,1740697832549,-1092.93244867,0.000448,120]
[354788452,1740697832560,-2525.86157792,0.000448,120]
[354788453,1740697832570,-211.34092594,0.000449,10]
[354788454,1740697832579,-151.0,0.00045,120]
[354788455,1740697832589,-1571.43514219,0.00049215,28]
[354788456,1740697832598,-500.0,0.00049315,120]
[354788457,1740697832608,-500.0,0.00049315,120]
[354788458,1740697832617,-236.87612857,0.00049315,120]
[354788459,1740697832630,-503.57,0.00049315,120]
[354788460,1740697832640,-500.0,0.00049315,120]
[354788461,1740697832649,-500.0,0.00049315,120]
[354788462,1740697832659,-500.0,0.00049315,120]
[354788463,1740697832668,-500.0,0.00049315,120]
[354788464,1740697832677,-268.93231576,0.00049315,120]
[354788468,1740697838241,-231.06768424,0.00049315,120]
[354788469,1740697838250,-500.0,0.00049315,120]
[354788470,1740697838262,-500.0,0.00049315,120]
[354788471,1740697838273,-500.0,0.00049315,120]
[354788472,1740697838282,-448.08090194,0.00049315,120]
[354788473,1740697838291,-500.0,0.00049315,120]
[354788474,1740697838300,-500.0,0.00049315,120]
[354788475,1740697838310,-500.0,0.00049315,120]
[354788476,1740697838319,-500.0,0.00049315,120]
[354788477,1740697838329,-500.0,0.00049315,120]
[354788478,1740697838340,-500.0,0.00049315,120]
[354788479,1740697838349,-500.0,0.00049315,120]
[354788480,1740697838359,-500.70129328,0.00049315,120]
[354788481,1740697838368,-500.0,0.00049315,120]
[354788482,1740697838378,-500.0,0.00049315,120]
[354788483,1740697838387,-500.0,0.00049315,120]
[354788484,1740697838399,-500.0,0.00049315,120]
[354788485,1740697838408,-417.20847366,0.00049315,120]
[354788486,1740697838421,-500.0,0.00049315,120]
[354788487,1740697838442,-629.15501364,0.00049315,120]
[354788488,1740697838456,-500.0,0.00049315,120]
[354788489,1740697838473,-507.7209542,0.00049315,120]
[354788490,1740697838485,-500.0,0.00049315,120]
[354788491,1740697838496,-500.0,0.00049315,120]
[354788492,1740697838506,-500.0,0.00049315,120]
[354788493,1740697838516,-500.0,0.00049315,120]
[354788494,1740697838526,-500.0,0.00049315,120]
[354788495,1740697838536,-500.0,0.00049315,120]
[354788496,1740697838547,-500.0,0.00049315,120]
[354788497,1740697838556,-500.0,0.00049315,120]
[354788498,1740697838565,-500.0,0.00049315,120]
[354788499,1740697838574,-500.0,0.00049315,120]
[354788500,1740697838583,-500.0,0.00049315,120]
[354788501,1740697838592,-500.0,0.00049315,120]
[354788502,1740697838602,-500.0,0.00049315,120]
[354788503,1740697838611,-500.0,0.00049315,120]
[354788504,1740697838620,-500.0,0.00049315,120]
[354788505,1740697838630,-500.0,0.00049315,120]
[354788506,1740697838640,-500.0,0.00049315,120]
[354788507,1740697838649,-500.89193196,0.00049315,120]
[354788508,1740697838659,-500.0,0.00049315,120]
[354788509,1740697838678,-587.31,0.00049315,120]
[354788510,1740697838688,-500.0,0.00049315,120]
[354788511,1740697838698,-500.0,0.00049315,120]
[354788512,1740697838708,-500.0,0.00049315,120]
[354788513,1740697838718,-500.0,0.00049315,120]
[354788514,1740697838728,-500.0,0.00049315,120]
[354788515,1740697838738,-500.0,0.00049315,120]
[354788516,1740697838748,-1769.91,0.00049315,7]
[354788517,1740697838757,-500.0,0.00049315,120]
[354788518,1740697838767,-500.0,0.00049315,120]
[354788519,1740697838776,-500.0,0.00049315,120]
[354788520,1740697838786,-500.0,0.00049315,120]
[354788521,1740697838796,-500.0,0.00049315,120]
[354788522,1740697838805,-500.0,0.00049315,120]
[354788523,1740697838815,-500.0,0.00049315,120]
[354788524,1740697838825,-500.0,0.00049315,120]
[354788525,1740697838834,-500.0,0.00049315,120]
[354788526,1740697838844,-500.0,0.00049315,120]
[354788527,1740697838854,-500.0,0.00049315,120]
[354788528,1740697838863,-500.0,0.00049315,120]
[354788529,1740697838873,-500.0,0.00049315,120]
[354788530,1740697838884,-500.0,0.00049315,120]
[354788531,1740697838893,-500.0,0.00049315,120]
[354788532,1740697838903,-389.95259309,0.00049315,120]
[354788533,1740697838912,-500.0,0.00049315,45]
[354788534,1740697838922,-500.0,0.00049315,120]
[354788535,1740697838932,-506.88242551,0.00049315,120]
[354788536,1740697838942,-500.0,0.00049315,120]
[354788537,1740697838951,-500.0,0.00049315,120]
[354788538,1740697838961,-161.91501548,0.00049315,120]
[354788539,1740697838971,-500.0,0.00049315,120]
[354788540,1740697838980,-500.0,0.00049315,120]
[354788541,1740697838990,-500.0,0.00049315,120]
[354788542,1740697838999,-500.0,0.00049315,120]
[354788543,1740697839008,-1000.0,0.00049315,2]
[354788544,1740697839018,-500.0,0.00049315,120]
[354788545,1740697839027,-500.0,0.00049315,120]
[354788546,1740697839037,-500.0,0.00049315,120]
[354788547,1740697839047,-500.0,0.00049315,120]
[354788548,1740697839058,-500.0,0.00049315,120]
[354788549,1740697839068,-500.0,0.00049315,120]
[354788550,1740697839078,-500.0,0.00049315,120]
[354788551,1740697839089,-500.0,0.00049315,120]
[354788552,1740697839098,-500.0,0.00049315,120]
[354788553,1740697839108,-500.0,0.00049315,120]
[354788554,1740697839120,-573.94,0.00049315,120]
[354788555,1740697839130,-500.0,0.00049315,120]
[354788556,1740697839143,-500.0,0.00049315,120]
[354788557,1740697839152,-500.0,0.00049315,120]
[354788558,1740697839161,-582.2,0.00049315,120]
[354788559,1740697839171,-500.0,0.00049315,120]
[354788560,1740697839180,-500.0,0.00049315,120]
[354788561,1740697839189,-500.0,0.00049315,120]
[354788562,1740697839199,-500.0,0.00049315,120]
[354788563,1740697839209,-500.0,0.00049315,120]
[354788564,1740697839218,-500.5069508,0.00049315,120]
[354788565,1740697839228,-500.0,0.00049315,2]
[354788566,1740697839238,-500.0,0.00049315,120]
[354788567,1740697839247,-500.0,0.00049315,21]
[354788568,1740697839261,-500.0,0.00049589,120]
[354788569,1740697839270,-500.0,0.00049589,120]
[354788570,1740697839280,-603.86992275,0.00049589,120]
[354788571,1740697839290,-500.037261,0.00049589,120]
[354788572,1740697839301,-500.0,0.00049589,120]
[354788573,1740697839311,-1769.91,0.00049589,7]
[354788574,1740697839320,-405.44142025,0.00049589,120]
[354788575,1740697839330,-486.37,0.00049589,120]
[354788576,1740697839339,-500.0,0.00049589,120]
[354788577,1740697839349,-500.0,0.00049589,120]
[354788578,1740697839359,-500.0,0.00049589,120]
[354788579,1740697839368,-500.0,0.00049589,120]
[354788580,1740697839378,-500.0,0.00049589,120]
[354788581,1740697839387,-1769.91,0.00049863,7]
[354788582,1740697839397,-500.0,0.00049863,120]
[354788583,1740697839406,-316.26,0.00049863,120]
[354788584,1740697839415,-241.88330631,0.00049863,120]
[354788585,1740697839425,-1032.13,0.00049889,10]
[354788586,1740697839434,-860.11,0.00049889,10]
[354788587,1740697839444,-500.0,0.00049899,120]
[354788588,1740697839454,-500.0,0.00049899,2]
[354788589,1740697839463,-500.0,0.00049899,120]
[354788590,1740697839472,-500.0,0.00049899,2]
[354788591,1740697839482,-600.63606266,0.00049899,2]
[354788592,1740697839491,-500.0,0.00049899,2]
[354788593,1740697839500,-500.0,0.00049899,120]
[354788594,1740697839509,-356.00208183,0.00049899,120]
[354788595,1740697839520,-500.0,0.00049899,2]
[354788596,1740697839530,-500.0,0.00049899,2]
[354788597,1740697839539,-500.0,0.00049899,2]
[354788598,1740697839548,-500.0,0.00049899,2]
[354788599,1740697839558,-500.0,0.00049899,2]
[354788600,1740697839568,-500.0,0.00049899,2]
[354788601,1740697839578,-500.0,0.00049899,2]
[354788602,1740697839587,-500.0,0.00049899,2]
[354788603,1740697839597,-500.0,0.00049899,2]
[354788604,1740697839606,-500.0,0.00049899,2]
[354788605,1740697839616,-500.0,0.00049899,2]
[354788606,1740697839626,-500.0,0.00049899,120]
[354788607,1740697839637,-500.0,0.00049899,120]
[354788608,1740697839647,-500.0,0.00049899,120]
[354788609,1740697839656,-500.0,0.00049899,120]
[354788610,1740697839667,-500.0,0.00049899,120]
[354788611,1740697839676,-9324.07,0.00049899,120]
[354788612,1740697839686,-88000.0,0.000499,2]
[354788613,1740697839695,-177.74,0.000499,30]
[354788614,1740697839705,-1000.0,0.00049999,60]
[354788615,1740697839715,-1769.91,0.00050136,7]
[354788616,1740697839725,-608.58539528,0.00050136,120]
[354788617,1740697839734,-1769.91,0.0005041,7]
[354788618,1740697839744,-1769.91,0.00050684,7]
[354788619,1740697839753,-500.0,0.00050957,7]
[354788620,1740697839762,-1769.91,0.00050958,7]
[354788621,1740697839771,-580.19,0.00050998,120]
[354788622,1740697839781,-500.0,0.00050999,120]
[354788623,1740697839790,-500.0,0.00050999,120]
[354788624,1740697839800,-500.0,0.00050999,120]
[354788625,1740697839810,-540.63249423,0.00050999,120]
[354788626,1740697839819,-500.0,0.00050999,120]
[354788627,1740697839828,-500.0,0.00050999,14]
[354788628,1740697839838,-500.0,0.00050999,120]
[354788629,1740697839848,-500.0,0.00050999,120]
[354788630,1740697839857,-500.0,0.00050999,30]
[354788631,1740697839867,-516.47,0.00050999,120]
[354788632,1740697839876,-500.0,0.00050999,120]
[354788633,1740697839887,-500.0,0.00050999,120]
[354788634,1740697839897,-500.0,0.00050999,120]
[354788635,1740697839906,-500.0,0.00050999,120]
[354788636,1740697839916,-1769.91,0.00051232,7]
[354788637,1740697839926,-1769.91,0.00051506,7]
[354788638,1740697839936,-1769.91,0.0005178,7]
[354788639,1740697839945,-500.0,0.000518,30]
[354788640,1740697839954,-2000.0,0.00051858,30]
[354788641,1740697839964,-1769.91,0.00052054,7]
[354788642,1740697840111,-1769.91,0.00052328,7]
[354788643,1740697840122,-614.22,0.000524,51]
[354788644,1740697840134,-614.22,0.000524,51]
[354788645,1740697840144,-614.22,0.000524,51]
[354788646,1740697840154,-614.22,0.000524,51]
[354788647,1740697840164,-614.22,0.000524,51]
[354788648,1740697840174,-614.22,0.000524,51]
[354788649,1740697840183,-614.22,0.000524,51]
[354788650,1740697840193,-614.22,0.000524,51]
[354788651,1740697840202,-614.22,0.000524,51]
[354788652,1740697840212,-614.22,0.000524,51]
[354788654,1740697840221,-614.22,0.000524,51]
[354788655,1740697840231,-614.22,0.000524,51]
[354788657,1740697840241,-500.0,0.00052599,120]
[354788659,1740697840250,-500.0,0.00052599,120]
[354788660,1740697840261,-500.0,0.00052599,120]
[354788661,1740697840273,-266.99326494,0.00052599,120]
[354788662,1740697840283,-500.0,0.00052599,120]
[354788663,1740697840292,-1549.95,0.000526,2]
[354788664,1740697840303,-1769.91,0.00052602,7]
[354788665,1740697840313,-500.0,0.00052873,120]
[354788666,1740697840322,-500.0,0.00052873,120]
[354788667,1740697840332,-159.25394868,0.00052873,120]
[354788668,1740697840344,-1769.91,0.00052876,7]
[354788669,1740697840354,-1753.84,0.00053,30]
[354788670,1740697840363,-500.0,0.00053147,120]
[354788671,1740697840373,-1769.91,0.0005315,7]
[354788672,1740697840383,-534.44,0.000532,30]
[354788673,1740697840392,-179.55112219,0.00053321,47]
[354788674,1740697840402,-150.0,0.00053389,2]
[354788675,1740697840411,-150.0,0.00053389,2]
[354788676,1740697840420,-500.0,0.00053421,120]
[354788677,1740697840431,-1769.91,0.00053424,7]
[354788678,1740697840440,-296.38,0.00053695,120]
[354788679,1740697840449,-1769.91,0.00053698,7]
[354788680,1740697840459,-1769.91,0.00053972,7]
[354788681,1740697840468,-1769.91,0.00054246,7]
[354788682,1740697840477,-891.34,0.000543,30]
[354788683,1740697840487,-1769.91,0.0005452,7]
[354788684,1740697840496,-1769.91,0.00054794,7]
[354788685,1740697840506,-261.07,0.000549,30]
[354788686,1740697840515,-1769.91,0.00055068,7]
[354788687,1740697840524,-41498.28,0.000552,30]
[354788688,1740697840534,-1769.91,0.00055342,7]
[354788689,1740697840544,-9324.07,0.00055379,120]
[354788690,1740697840554,-1769.94999998,0.00055616,7]
[354788691,1740697840564,-150.0,0.00056389,2]
[354788692,1740697840573,-150.0,0.00056389,2]
[354788693,1740697840583,-1000.0,0.00056437,7]
[354788694,1740697840592,-2200.0,0.00057962,120]
[354788695,1740697840602,-1753.84,0.00058,30]
[354788696,1740697840611,-800.0,0.00059054,120]
[354788697,1740697840620,-150.0,0.00059389,2]
[354788698,1740697840633,-150.0,0.00059389,2]
[354788699,1740697840643,-534.44,0.000594,30]
[354788700,1740697840652,-151.0,0.00060027,120]
[354788701,1740697840662,-800.0,0.00060424,120]
[354788702,1740697840672,-800.0,0.00060531,120]
[354788703,1740697840682,-9324.07,0.00060858,120]
[354788704,1740697840692,-150.0,0.00062389,2]
[354788705,1740697840702,-150.0,0.00062389,2]
[354788706,1740697840711,-800.0,0.00062991,120]
[354788707,1740697840722,-3006.44810103,0.00064,120]
[354788708,1740697840732,-1000.0,0.00064,120]
[354788709,1740697840742,-1000.0,0.00064,120]
[354788710,1740697840752,-1000.0,0.00064,120]
[354788711,1740697840762,-1000.0,0.00064,120]
[354788712,1740697840771,-1000.0,0.00064,120]
[354788713,1740697840781,-1000.0,0.00064,120]
[354788714,1740697840791,-1000.0,0.00064,120]
[354788715,1740697840800,-1000.0,0.00064,120]
[354788716,1740697840810,-1000.0,0.00064,120]
[354788717,1740697840820,-1000.0,0.00064,120]
[354788718,1740697840829,-1000.0,0.00064,120]
[354788719,1740697840839,-1000.0,0.00064,120]
[354788720,1740697840848,-1000.0,0.00064,120]
[354788721,1740697840858,-1000.0,0.00064,120]
[354788722,1740697840867,-1000.0,0.00064,120]
[354788723,1740697840877,-1000.0,0.00064,120]
[354788724,1740697840888,-1000.0,0.00064,120]
[354788725,1740697840898,-891.34,0.00064,30]
[354788726,1740697840907,-10000.0,0.00064,120]
[354788727,1740697840917,-3618.79402658,0.00064397,120]
[354788728,1740697840927,-800.0,0.00064491,120]
[354788729,1740697840937,-500.0,0.000649,16]
[354788730,1740697840946,-261.07,0.000649,30]
[354788731,1740697840955,-500.0,0.000649,115]
[354788732,1740697840965,-295857.850639,0.000649,2]
[354788733,1740697840974,-150.0,0.000649,120]
[354788734,1740697840984,-1050.0,0.000649,120]
[354788735,1740697840994,-1000.0,0.0006498,120]
[354788736,1740697841003,-4998.88215612,0.00065,120]
[354788737,1740697841013,-500.0,0.00065174,16]
[354788738,1740697841022,-500.0143144,0.00065373,14]
[354788739,1740697841032,-500.0,0.00065373,14]
[354788740,1740697841041,-150.0,0.00065389,2]
[354788741,1740697841051,-16411.70785139,0.0006539,2]
[354788742,1740697841066,-16916.38999999,0.0006539,2]
[354788743,1740697841123,-716.76,0.0004989,10]
[354788744,1740697841134,-417.436,0.00052656,2]
[354788745,1740697841144,-397.0,0.00055656,2]
[354788746,1740697841154,-15981.54392182,0.0006539,2]
[354788747,1740697841164,-41498.28,0.000654,30]
[354788748,1740697841174,-160.0,0.00065673,3]
[354788749,1740697841183,-9324.07,0.00066338,120]
[354788750,1740697841194,-1500.0,0.00066455,7]
[354788751,1740697841204,-49309.6417732,0.00066991,2]